bitfinex-derivatives/quotes_SOLF0:USTF0_20250823
["timestamp","ask_amount","ask_price","bid_price","bid_amount"]
[1755967492637,119.7,203.17,203.15,4.9239]
[1755967494235,5.08967993,203.18,203.17,4.9236]
[1755967494433,124.78967993,203.18,203.17,4.9236]
[1755967495833,5.08967993,203.18,203.17,4.9236]
[1755967496033,124.78967993,203.18,203.17,4.9236]
[1755967498740,119.7,203.18,203.17,7.4936]
[1755967499736,119.7,203.18,203.17,4.9236]
[1755967501740,119.7,203.18,203.17,7.4936]
[1755967502035,5.08967993,203.22,203.21,4.9227]
[1755967502340,124.76967993,203.22,203.21,4.9227]
[1755967502939,5.08967993,203.24,203.22,4.9222]
[1755967503139,0.85640458,203.26,203.22,2.57]
[1755967503338,124.76967993,203.25,203.22,2.57]
[1755967503535,119.68,203.24,203.22,2.57]
[1755967504339,119.68,203.24,203.23,7.5419]
[1755967504743,5.08967993,203.27,203.23,2.62]
[1755967504939,5.08967993,203.28,203.26,4.9214]
[1755967505141,119.68,203.27,203.26,4.9214]
[1755967506339,112.62582778,203.3,203.26,4.9214]
[1755967506540,112.62582778,203.3,203.23,2.62]
[1755967506541,119.66,203.29,203.23,2.62]
[1755967507041,119.66,203.29,203.25,2.62]
[1755967507240,119.66,203.29,203.26,2.62]
[1755967508251,119.66,203.29,203.27,4.921]
[1755967519347,330.96,203.4,203.28,4.99171785]
[1755967519546,119.6,203.39,203.29,2.62]
[1755967519744,120.45586749,203.39,203.29,2.62]
[1755967520243,7.93072654,203.37,203.26,2.62]
[1755967520448,7.93072654,203.37,203.23,2.62]
[1755967520645,7.93072654,203.37,203.24,4.99282414]
[1755967520837,7.93072654,203.37,203.25,4.99282414]
[1755967521042,7.93072654,203.37,203.23,2.62]
[1755967521242,7.93072654,203.37,203.24,4.99374994]
[1755967521439,7.93072654,203.37,203.25,4.99374994]
[1755967521645,4.9196,203.34,203.27,4.9211]
[1755967521843,119.6,203.33,203.27,4.9211]
[1755967522044,127.53072654,203.33,203.27,4.9211]
[1755967523246,127.53072654,203.33,203.28,4.9208]
[1755967524247,127.53072654,203.33,203.29,4.9205]
[1755967525548,119.6,203.33,203.29,4.9205]
[1755967525946,119.6,203.33,203.3,4.9204]
[1755967526146,7.93072654,203.35,203.3,4.9204]
[1755967526351,119.58,203.34,203.3,4.9204]
[1755967527149,119.58,203.34,203.24,24.6094]
[1755967527150,119.58,203.34,203.27,2.62]
[1755967527742,119.58,203.34,203.29,2.62]
[1755967527947,119.58,203.34,203.3,2.62]
[1755967528346,119.58,203.34,203.32,2.62]
[1755967528547,119.58,203.34,203.32,7.5398]
[1755967529647,7.93072654,203.38,203.33,4.9195]
[1755967529952,119.58,203.37,203.33,4.9195]
[1755967530352,119.58,203.37,203.34,4.9194]
[1755967531246,119.58,203.36,203.34,4.9194]
[1755967531442,119.58,203.35,203.34,4.9194]
[1755967534753,119.56,203.36,203.34,4.9194]
[1755967535551,119.56,203.36,203.34,7.7194]
[1755967535955,119.56,203.36,203.35,2.8]
[1755967537945,119.56,203.39,203.32,24.5999]
[1755967538146,119.56,203.39,203.34,2.8]
[1755967538457,119.56,203.39,203.35,2.8]
[1755967539055,119.56,203.39,203.38,4.9184]
[1755967539860,119.56,203.39,203.36,4.9189]
[1755967540355,119.56,203.39,203.32,27.3999]
[1755967540551,119.56,203.39,203.33,4.99928596]
[1755967540745,119.56,203.39,203.34,4.99928596]
[1755967540946,119.56,203.39,203.35,2.8]
[1755967541559,119.56,203.39,203.37,4.9187]
[1755967547859,119.56,203.39,203.34,4.9194]
[1755967548051,119.56,203.39,203.35,5.00883717]
[1755967548256,119.56,203.39,203.3,2.8]
[1755967548455,119.56,203.39,203.31,5.012024]
[1755967548656,119.56,203.39,203.32,6.94261104]
[1755967548855,119.56,203.39,203.33,5.012024]
[1755967549156,119.56,203.39,203.34,9.931424]
[1755967549357,119.56,203.39,203.35,5.012024]
[1755967549557,119.56,203.39,203.32,2.8]
[1755967549759,119.56,203.39,203.33,5.01217924]
[1755967549961,119.56,203.39,203.34,5.01217924]
[1755967550164,7.93072654,203.52,203.35,7.81217924]
[1755967550365,7.93072654,203.45,203.36,5.01217924]
[1755967550665,119.52,203.44,203.37,5.01217924]
[1755967550860,119.52,203.44,203.38,5.01217924]
[1755967551059,119.52,203.44,203.35,2.8]
[1755967551363,119.52,203.44,203.4,4.9179]
[1755967553460,119.52,203.44,203.41,4.9177]
[1755967554465,128.33010351,203.46,203.38,24.5928]
[1755967554666,128.33010351,203.46,203.39,7.81950249]
[1755967554667,119.52,203.45,203.39,7.81950249]
[1755967554857,119.52,203.45,203.41,2.8]
[1755967555767,119.52,203.45,203.43,4.9172]
[1755967559570,119.52,203.45,203.44,2.8]
[1755967562681,119.5,203.48,203.45,4.9167]
[1755967563966,119.5,203.48,203.46,4.9164]
[1755967564166,119.5,203.48,203.46,7.4864]
[1755967565276,119.5,203.49,203.47,4.9162]
[1755967565771,119.5,203.49,203.45,4.9168]
[1755967566379,119.5,203.49,203.38,2.57]
[1755967566677,120.35538363,203.49,203.39,5.00935901]
[1755967566979,120.35538363,203.49,203.43,4.9172]
[1755967569376,120.35538363,203.49,203.44,4.9169]
[1755967570682,120.35538363,203.49,203.42,4.9174]
[1755967570983,120.35538363,203.49,203.4,2.57]
[1755967571481,120.35538363,203.49,203.43,4.9172]
[1755967572384,120.35538363,203.49,203.41,4.9177]
[1755967572676,120.35538363,203.49,203.4,2.57]
[1755967573677,120.35538363,203.49,203.42,4.9175]
[1755967576881,120.45538363,203.49,203.42,4.9175]
[1755967578281,5.06715458,203.46,203.42,4.9175]
[1755967579485,5.06715458,203.46,203.43,4.9172]
[1755967580681,5.06715458,203.46,203.4,2.57]
[1755967580682,0.95538363,203.49,203.38,24.5926]
[1755967580881,0.95538363,203.49,203.42,2.57]
[1755967580882,5.06715458,203.48,203.42,2.57]
[1755967582486,5.06715458,203.46,203.39,2.57]
[1755967582788,5.06715458,203.46,203.4,5.01472752]
[1755967582982,5.06715458,203.46,203.39,2.57]
[1755967583182,5.16715458,203.49,203.42,2.57]
[1755967583382,5.16715458,203.49,203.43,5.05224154]
[1755967583585,5.16715458,203.49,203.42,2.57]
[1755967583887,5.16715458,203.49,203.43,5.05001822]
[1755967584189,5.16715458,203.49,203.39,2.57]
[1755967584386,5.06715458,203.46,203.4,5.05054613]
[1755967584586,5.06715458,203.46,203.41,5.05054613]
[1755967584882,5.06715458,203.46,203.39,2.57]
[1755967585082,5.06715458,203.46,203.4,5.05262422]
[1755967585282,5.06715458,203.46,203.41,5.05262422]
[1755967585482,0.1,203.49,203.43,4.9172]
[1755967585686,5.06715458,203.47,203.43,4.9172]
[1755967586888,5.06715458,203.47,203.44,4.917]
[1755967587380,5.06715458,203.47,203.39,2.57]
[1755967587583,5.06715458,203.47,203.4,5.05422967]
[1755967587782,5.06715458,203.47,203.41,5.05422967]
[1755967587984,5.06715458,203.47,203.39,2.57]
[1755967588180,5.06715458,203.47,203.43,4.9172]
[1755967588488,0.1,203.49,203.43,4.9172]
[1755967589588,119.74,203.48,203.43,4.9172]
[1755967590586,119.74,203.48,203.41,4.9177]
[1755967590885,124.6562,203.48,203.42,5.05964671]
[1755967591086,124.6562,203.48,203.41,4.9177]
[1755967591286,124.6562,203.48,203.42,5.06026991]
[1755967591489,124.6562,203.48,203.41,4.9177]
[1755967591788,7.91804786,203.46,203.37,4.9187]
[1755967591988,7.91804786,203.46,203.38,5.0639977]
[1755967592180,7.91804786,203.46,203.37,4.9187]
[1755967592384,4.9176,203.43,203.38,5.06491752]
[1755967592690,119.82,203.42,203.37,4.9187]
[1755967593485,127.73804786,203.42,203.37,4.9187]
[1755967594090,119.82,203.42,203.33,24.5988]
[1755967594390,119.82,203.42,203.39,2.69]
[1755967594589,119.82,203.42,203.4,5.06723214]
[1755967594785,119.82,203.42,203.39,2.69]
[1755967594982,119.82,203.42,203.4,5.06677237]
[1755967595193,7.91804786,203.46,203.4,2.69]
[1755967595488,119.84,203.45,203.4,7.6079]
[1755967595688,7.91804786,203.46,203.4,7.6079]
[1755967595886,119.84,203.45,203.4,7.6079]
[1755967598090,119.84,203.45,203.4,4.9179]
[1755967598990,119.84,203.45,203.41,5.06839316]
[1755967599191,119.84,203.45,203.4,7.6079]
[1755967599393,119.8,203.44,203.41,9.98624913]
[1755967599588,119.8,203.44,203.42,2.69]
[1755967599788,119.8,203.44,203.43,5.066721]
[1755967599988,119.82,203.46,203.43,7.756721]
[1755967600192,119.82,203.46,203.43,2.69]
[1755967601092,119.82,203.46,203.44,4.9171]
[1755967604490,119.82,203.46,203.45,5.06679759]
[1755967604694,8.01804786,203.49,203.45,5.06679759]
[1755967604889,119.78,203.48,203.44,4.9171]
[1755967605096,119.78,203.48,203.45,5.06700739]
[1755967605297,119.78,203.48,203.44,4.9171]
[1755967605495,119.78,203.48,203.45,5.06719466]
[1755967605695,119.78,203.48,203.44,4.9171]
[1755967605894,119.78,203.48,203.45,5.06719466]
[1755967606096,119.78,203.48,203.44,4.9171]
[1755967606296,119.78,203.48,203.45,5.06719466]
[1755967606492,119.78,203.48,203.37,24.5939]
[1755967606698,119.78,203.48,203.38,14.06165668]
[1755967606998,119.78,203.48,203.39,5.06759894]
[1755967607298,119.78,203.48,203.4,5.06759894]
[1755967607494,119.78,203.48,203.38,2.69]
[1755967607495,119.78,203.48,203.41,5.06759894]
[1755967607691,119.78,203.48,203.35,24.5961]
[1755967607692,7.91804786,203.45,203.42,5.06759894]
[1755967607896,7.91804786,203.45,203.35,2.69]
[1755967608098,7.91804786,203.45,203.36,11.37849229]
[1755967608393,7.91804786,203.45,203.37,5.07059762]
[1755967608599,7.91804786,203.45,203.38,5.07059762]
[1755967608808,7.91804786,203.41,203.32,2.69]
[1755967609099,119.82,203.4,203.33,11.38368437]
[1755967609306,119.82,203.4,203.34,9.99218294]
[1755967609597,119.82,203.4,203.35,5.07288294]
[1755967609797,119.82,203.4,203.36,5.07288294]
[1755967609990,119.82,203.4,203.34,4.9193]
[1755967610197,119.82,203.4,203.35,5.07184613]
[1755967610500,119.82,203.4,203.34,4.9193]
[1755967610501,119.82,203.4,203.36,5.07184613]
[1755967610696,119.82,203.4,203.34,4.9193]
[1755967610897,119.82,203.4,203.35,5.07088052]
[1755967611095,119.82,203.4,203.34,4.9193]
[1755967611096,119.82,203.4,203.36,5.07088052]
[1755967611300,119.82,203.4,203.34,4.9193]
[1755967611499,119.82,203.4,203.35,5.07016601]
[1755967611699,119.82,203.4,203.36,5.07016601]
[1755967611895,119.82,203.4,203.34,4.9193]
[1755967612092,119.82,203.4,203.35,5.07016601]
[1755967612301,119.82,203.4,203.36,5.07016601]
[1755967612503,119.82,203.4,203.32,4.92]
[1755967612699,119.82,203.4,203.33,5.06896574]
[1755967612899,119.82,203.4,203.34,5.06896574]
[1755967613098,119.82,203.4,203.35,5.06896574]
[1755967613298,119.82,203.4,203.33,4.9196]
[1755967613599,119.82,203.4,203.34,9.91682023]
[1755967613796,119.82,203.4,203.35,4.99742023]
[1755967613993,119.82,203.4,203.34,4.9194]
[1755967614195,119.82,203.4,203.35,4.99720353]
[1755967614395,119.82,203.4,203.34,4.9194]
[1755967614697,119.82,203.4,203.35,4.99659606]
[1755967614896,119.82,203.4,203.34,4.9194]
[1755967615107,119.82,203.4,203.35,4.99659606]
[1755967615299,119.82,203.4,203.34,4.9194]
[1755967615494,119.82,203.4,203.35,4.99568117]
[1755967615699,119.9,203.39,203.35,4.9191]
[1755967622406,7.91804786,203.41,203.36,4.9189]
[1755967622707,7.91804786,203.42,203.37,2.69]
[1755967622906,7.91804786,203.42,203.32,24.5997]
[1755967622907,119.82,203.41,203.39,7.6082]
[1755967623303,0.1,203.49,203.39,4.9182]
[1755967623608,119.86,203.48,203.45,4.9167]
[1755967624596,119.86,203.48,203.46,4.9165]
[1755967626496,119.86,203.48,203.44,4.917]
[1755967627104,0.1,203.49,203.44,4.917]
[1755967627308,7.91804786,203.47,203.37,2.8]
[1755967627905,4.917,203.45,203.39,4.9182]
[1755967628914,7.91804786,203.43,203.32,2.8]
[1755967629115,24.5825,203.47,203.32,2.8]
[1755967629116,7.91804786,203.39,203.32,2.8]
[1755967629310,119.96,203.38,203.32,2.8]
[1755967629611,119.96,203.38,203.34,4.9194]
[1755967630310,119.96,203.38,203.32,4.9199]
[1755967632509,119.96,203.38,203.29,4.9206]
[1755967632510,7.91804786,203.36,203.29,4.9206]
[1755967632706,7.91804786,203.36,203.3,4.99554157]
[1755967632909,7.91804786,203.36,203.29,4.9206]
[1755967633110,7.91804786,203.36,203.3,4.99636923]
[1755967633310,7.91804786,203.36,203.29,4.9206]
[1755967633610,7.91804786,203.36,203.3,4.99512498]
[1755967633811,120.02,203.36,203.31,4.99441881]
[1755967634009,120.02,203.36,203.33,2.8]
[1755967635107,120.02,203.36,203.34,4.9193]
[1755967636912,120.02,203.36,203.32,4.9199]
[1755967637109,120.02,203.36,203.33,4.99294694]
[1755967637308,120.02,203.36,203.32,4.9199]
[1755967637508,120.02,203.36,203.33,4.99247843]
[1755967637712,120.02,203.36,203.32,4.9199]
[1755967637911,120.02,203.36,203.33,4.99247843]
[1755967638111,120.02,203.36,203.32,4.9199]
[1755967638307,120.02,203.36,203.33,4.99247843]
[1755967638509,120.02,203.36,203.32,4.9199]
[1755967638709,120.02,203.36,203.33,4.99097344]
[1755967638908,120.02,203.36,203.32,4.9199]
[1755967639312,127.93804786,203.36,203.3,4.9204]
[1755967639921,127.93804786,203.36,203.28,4.9209]
[1755967640216,127.93804786,203.36,203.29,4.99232679]
[1755967640413,127.93804786,203.36,203.28,4.9209]
[1755967640609,127.93804786,203.36,203.29,4.9912138]
[1755967640812,127.93804786,203.36,203.28,4.9209]
[1755967641018,127.93804786,203.36,203.29,4.9912138]
[1755967641219,127.93804786,203.36,203.29,4.9206]
[1755967641220,132.85724786,203.36,203.29,4.9206]
[1755967642908,7.91804786,203.32,203.26,2.8]
[1755967643111,120.12,203.31,203.27,9.96003005]
[1755967643314,120.12,203.31,203.28,5.03893005]
[1755967643511,120.12,203.31,203.27,4.9211]
[1755967643723,120.12,203.31,203.28,5.03923893]
[1755967644024,120.12,203.31,203.27,4.9211]
[1755967645121,7.91804786,203.36,203.28,7.8382117]
[1755967645321,120.1,203.35,203.29,5.0382117]
[1755967645521,120.1,203.35,203.28,2.8]
[1755967645717,120.1,203.34,203.29,5.03730595]
[1755967645922,120.1,203.34,203.28,2.8]
[1755967646124,120.18,203.33,203.3,2.8]
[1755967646531,120.18,203.33,203.3,7.7205]
[1755967647329,120.18,203.33,203.3,4.9205]
[1755967649035,120.18,203.33,203.28,7.7208]
[1755967649233,120.18,203.33,203.29,5.03724456]
[1755967649435,120.18,203.33,203.3,5.0382221]
[1755967649632,120.18,203.33,203.28,7.7208]
[1755967649828,120.26,203.32,203.3,2.8]
[1755967650036,120.26,203.32,203.26,24.6072]
[1755967650335,120.26,203.32,203.31,2.8]
[1755967650536,120.26,203.32,203.31,7.83738132]
[1755967650834,120.26,203.32,203.31,9.95758132]
[1755967651433,120.26,203.32,203.31,5.03738132]
[1755967651736,120.26,203.32,203.29,4.9206]
[1755967651937,120.26,203.32,203.3,5.04089143]
[1755967652138,120.26,203.32,203.29,4.9206]
[1755967652342,120.26,203.32,203.3,5.04112798]
[1755967652536,120.26,203.32,203.29,4.9206]
[1755967652837,120.26,203.32,203.3,5.04127924]
[1755967653040,120.26,203.32,203.29,4.9206]
[1755967653239,120.26,203.32,203.3,5.04127922]
[1755967653441,120.26,203.32,203.3,4.9204]
[1755967654135,120.22,203.31,203.3,4.9204]
[1755967654341,120.22,203.31,203.3,9.96182994]
[1755967654637,11.06721245,203.45,203.3,5.04142994]
[1755967654835,7.91804786,203.41,203.31,7.80142994]
[1755967655033,120.2,203.4,203.32,5.04142994]
[1755967655234,120.2,203.4,203.33,5.04142994]
[1755967655440,120.2,203.4,203.34,5.04142994]
[1755967655638,120.2,203.4,203.35,9.96062994]
[1755967655839,120.2,203.4,203.35,4.9192]
[1755967656039,7.91804786,203.37,203.25,2.76]
[1755967656242,7.91804786,203.33,203.28,4.9209]
[1755967656434,120.66,203.32,203.29,5.04247732]
[1755967656630,120.66,203.32,203.28,4.9209]
[1755967656841,120.66,203.32,203.29,5.04159044]
[1755967657137,120.66,203.32,203.26,4.9214]
[1755967657337,120.66,203.32,203.27,5.04264898]
[1755967657538,120.66,203.32,203.26,4.9214]
[1755967657738,120.66,203.32,203.27,5.04192833]
[1755967657936,120.66,203.32,203.26,4.9214]
[1755967658136,7.91804786,203.29,203.27,5.04192833]
[1755967658442,7.91804786,203.29,203.21,2.76]
[1755967658643,7.91804786,203.29,203.22,11.33751416]
[1755967658842,7.91804786,203.29,203.23,11.21857496]
[1755967659036,7.91804786,203.29,203.14,355.2212]
[1755967659037,7.91804786,203.29,203.24,11.33810438]
[1755967659242,7.91804786,203.25,203.17,2.76]
[1755967659439,120.64,203.24,203.18,6.29742927]
[1755967659637,120.64,203.24,203.19,11.22042927]
[1755967659837,120.64,203.24,203.2,6.29742927]
[1755967660034,120.64,203.24,203.21,4.35483692]
[1755967660239,120.64,203.24,203.17,2.76]
[1755967660538,120.64,203.24,203.18,6.29813074]
[1755967660743,120.64,203.24,203.17,4.9235]
[1755967661143,7.91804786,203.21,203.17,4.9235]
[1755967665241,7.91804786,203.21,203.15,4.9241]
[1755967665446,120.64,203.24,203.14,2.76]
[1755967665644,7.91804786,203.21,203.14,2.76]
[1755967665945,7.91804786,203.21,203.17,4.9236]
[1755967667445,120.64,203.2,203.17,4.9236]
[1755967667847,7.91804786,203.21,203.17,4.9236]
[1755967668049,120.62,203.2,203.17,4.9236]
[1755967672653,120.62,203.2,203.18,4.9232]
[1755967679661,120.62,203.2,203.16,7.6838]
[1755967679852,7.91804786,203.22,203.17,4.85880312]
[1755967680053,120.42,203.21,203.16,7.6838]
[1755967680358,120.42,203.21,203.17,4.8590604]
[1755967680560,120.42,203.21,203.16,7.6838]
[1755967680858,7.91804786,203.22,203.17,4.86149503]
[1755967681058,120.42,203.21,203.16,7.6838]
[1755967681254,120.42,203.21,203.17,4.86217207]
[1755967681457,120.42,203.21,203.16,7.6838]
[1755967681659,120.42,203.21,203.17,4.8627314]
[1755967681958,120.42,203.21,203.16,7.6838]
[1755967682159,7.91804786,203.22,203.17,4.86275862]
[1755967682458,120.4,203.21,203.16,7.6838]
[1755967682759,120.4,203.21,203.17,4.86368428]
[1755967682957,120.4,203.21,203.16,7.6838]
[1755967683360,120.4,203.21,203.17,4.86401394]
[1755967683563,120.4,203.21,203.16,7.6838]
[1755967683759,120.4,203.21,203.17,4.86448821]
[1755967683959,120.4,203.21,203.16,7.6838]
[1755967684158,120.4,203.21,203.17,4.86347525]
[1755967684361,120.4,203.21,203.16,7.6838]
[1755967684551,120.4,203.21,203.17,4.86339251]
[1755967684755,120.4,203.21,203.17,2.71]
[1755967684950,120.4,203.21,203.12,24.6234]
[1755967684951,120.4,203.21,203.14,2.71]
[1755967685161,120.4,203.21,203.15,6.80378813]
[1755967685461,120.4,203.21,203.16,7.57337397]
[1755967685756,120.4,203.21,203.17,4.86337397]
[1755967685961,120.4,203.21,203.16,4.9237]
[1755967688960,120.4,203.21,203.16,7.6337]
[1755967691659,120.4,203.21,203.16,2.71]
[1755967691859,120.4,203.21,203.12,24.6243]
[1755967692060,120.4,203.21,203.13,13.86722054]
[1755967692261,120.4,203.21,203.14,4.86512852]
[1755967692566,120.4,203.21,203.15,4.86512852]
[1755967692863,120.4,203.21,203.17,4.9235]
[1755967696767,120.4,203.21,203.18,4.9233]
[1755967698366,120.4,203.21,203.15,2.71]
[1755967698367,120.4,203.21,203.19,4.923]
[1755967700461,330.96,203.29,203.15,2.71]
[1755967700462,7.91804786,203.27,203.2,7.59510198]
[1755967700664,120.16,203.26,203.21,11.20730092]
[1755967700961,120.16,203.26,203.22,7.59510198]
[1755967701164,120.16,203.26,203.25,2.71]
[1755967701568,120.16,203.26,203.25,7.59461402]
[1755967702363,120.16,203.26,203.25,9.55013799]
[1755967702868,120.16,203.26,203.25,7.59461402]
[1755967703765,120.16,203.26,203.25,9.55091871]
[1755967704472,120.16,203.26,203.25,6.84091871]
[1755967705269,120.16,203.26,203.25,4.88461402]
[1755967706970,120.16,203.26,203.25,4.87170829]
[1755967710073,120.16,203.26,203.24,4.9218]
[1755967713275,330.96,203.29,203.26,4.9214]
[1755967713463,120.06,203.28,203.26,4.9214]
[1755967713870,330.96,203.29,203.26,4.9214]
[1755967714174,120.08,203.28,203.26,4.9214]
[1755967714968,120.08,203.28,203.26,7.5414]
[1755967717766,159.89659217,203.3,203.26,7.5414]
[1755967717972,159.89659217,203.3,203.29,4.9207]
[1755967718166,279.91659217,203.3,203.29,4.9207]
[1755967719467,120.02,203.3,203.29,4.9207]
[1755967719671,120.0,203.3,203.29,4.9207]
[1755967721476,120.0,203.3,203.23,2.62]
[1755967721672,120.0,203.3,203.16,24.6185]
[1755967721673,120.0,203.3,203.2,27.2346]
[1755967721877,120.0,203.3,203.21,4.86163814]
[1755967722178,120.0,203.3,203.25,4.9215]
[1755967722380,7.91804786,203.29,203.25,4.9215]
[1755967722974,7.91804786,203.29,203.23,4.922]
[1755967723170,7.91804786,203.29,203.18,2.62]
[1755967723371,7.91804786,203.25,203.19,11.18700512]
[1755967723572,119.98,203.24,203.2,4.86166326]
[1755967723779,119.98,203.24,203.18,2.62]
[1755967723973,119.98,203.24,203.19,4.86289893]
[1755967724175,119.98,203.24,203.18,2.62]
[1755967724376,119.98,203.24,203.19,4.86289893]
[1755967724575,119.98,203.24,203.21,4.9225]
[1755967725576,7.91804786,203.25,203.18,27.237]
[1755967725883,119.96,203.24,203.21,2.62]
[1755967726079,330.86,203.32,203.22,7.48314434]
[1755967726277,119.98,203.31,203.22,2.62]
[1755967726483,119.98,203.31,203.23,4.86101546]
[1755967726685,119.98,203.31,203.22,2.62]
[1755967727086,119.98,203.31,203.23,4.8608686]
[1755967727387,119.98,203.31,203.22,2.62]
[1755967727587,119.98,203.31,203.27,4.921]
[1755967731487,119.98,203.31,203.28,4.9209]
[1755967731688,330.86,203.32,203.24,27.2295]
[1755967731893,120.06,203.3,203.24,27.2295]
[1755967732190,120.06,203.3,203.25,4.86146982]
[1755967732494,120.06,203.3,203.27,2.62]
[1755967733489,120.06,203.3,203.29,4.9206]
[1755967738798,330.86,203.32,203.31,4.9202]
[1755967739000,450.82,203.32,203.31,4.9202]
[1755967739303,7.91804786,203.36,203.32,4.9199]
[1755967739506,119.96,203.35,203.32,4.9199]
[1755967740598,7.91804786,203.39,203.32,4.9199]
[1755967740800,119.96,203.38,203.32,4.9199]
[1755967742408,124.8787,203.38,203.32,4.9199]
[1755967743404,7.91804786,203.35,203.26,2.62]
[1755967743598,119.92,203.34,203.26,2.62]
[1755967743804,119.92,203.34,203.23,2.56]
[1755967744003,119.92,203.34,203.24,6.82379448]
[1755967744207,119.92,203.34,203.25,4.87041032]
[1755967744399,119.92,203.34,203.23,2.56]
[1755967744596,119.92,203.34,203.24,4.87238619]
[1755967744799,119.92,203.34,203.23,2.56]
[1755967744996,119.92,203.34,203.24,4.87238619]
[1755967745200,119.92,203.34,203.25,4.87238619]
[1755967745406,119.92,203.34,203.23,2.56]
[1755967745597,4.9202,203.32,203.26,4.9213]
[1755967758320,5.07556559,203.29,203.26,4.9213]
[1755967758619,5.07556559,203.29,203.26,7.4813]
[1755967759417,4.9202,203.32,203.26,4.9213]
[1755967759621,5.07556559,203.34,203.27,2.56]
[1755967759923,119.82,203.33,203.27,2.56]
[1755967760117,119.82,203.33,203.24,5.07556559]
[1755967760317,119.82,203.33,203.32,2.56]
[1755967761121,119.82,203.35,203.32,2.56]
[1755967761321,119.82,203.35,203.28,2.56]
[1755967762521,119.82,203.35,203.32,4.9198]
[1755967762922,119.82,203.35,203.33,2.56]
[1755967767727,119.82,203.35,203.32,4.9198]
[1755967768821,119.82,203.35,203.32,7.4798]
[1755967769027,119.82,203.35,203.32,4.9198]
[1755967769330,119.82,203.35,203.33,2.56]
[1755967769519,119.82,203.35,203.27,24.6058]
[1755967769725,119.82,203.35,203.34,2.56]
[1755967769920,7.92707323,203.42,203.29,24.6033]
[1755967770126,119.78,203.41,203.31,2.56]
[1755967770326,119.78,203.41,203.37,4.9186]
[1755967770629,119.78,203.41,203.37,7.4786]
[1755967773427,12.84407323,203.45,203.39,4.9183]
[1755967773627,12.84407323,203.45,203.39,7.5683]
[1755967773628,119.8,203.44,203.39,7.5683]
[1755967773935,7.92707323,203.45,203.39,7.5683]
[1755967774135,119.8,203.44,203.39,7.5683]
[1755967774327,119.8,203.44,203.4,4.9179]
[1755967777423,119.8,203.44,203.38,4.9185]
[1755967778236,119.8,203.44,203.39,4.9182]
[1755967778731,119.8,203.44,203.39,7.5682]
[1755967779732,119.8,203.44,203.39,4.9182]
[1755967780734,4.9169,203.45,203.39,4.9182]
[1755967780936,119.76,203.44,203.39,4.9182]
[1755967782437,5.06898085,203.43,203.39,4.9182]
[1755967788035,5.06898085,203.43,203.39,7.5682]
[1755967789237,5.06898085,203.43,203.4,2.65]
[1755967790034,119.76,203.44,203.4,2.65]
[1755967790236,5.06898085,203.43,203.4,2.65]
[1755967792545,119.76,203.44,203.41,2.65]
[1755967792948,119.76,203.44,203.42,4.9174]
[1755967793148,119.76,203.44,203.42,7.5674]
[1755967793442,119.76,203.44,203.43,2.65]
[1755967794344,119.76,203.44,203.42,7.5674]
[1755967794746,119.76,203.44,203.43,2.65]
[1755967796447,119.76,203.44,203.42,7.5674]